bitfinex/quotes_SOLUSD_20251223
["timestamp","ask_amount","ask_price","bid_price","bid_amount"]
[1766510339414,0.66,124.59,124.56,11.68030594]
[1766510339593,0.66,124.64,124.58,3.65215849]
[1766510339791,0.66,124.61,124.58,3.65215849]
[1766510340718,0.66,124.63,124.6,2.93215849]
[1766510341115,0.66,124.63,124.59,0.72]
[1766510341116,0.66,124.63,124.59,3.65215849]
[1766510341505,0.66,124.63,124.59,11.67845962]
[1766510343021,0.66,124.62,124.59,10.95845962]
[1766510343217,0.66,124.62,124.58,11.67885011]
[1766510343415,0.66,124.62,124.59,3.65215849]
[1766510345316,0.66,124.62,124.59,0.72]
[1766510345623,0.66,124.62,124.59,3.65215849]
[1766510346617,0.66,124.62,124.59,0.72]
[1766510346826,0.66,124.62,124.59,3.65215849]
[1766510348832,0.66,124.62,124.6,2.93215849]
[1766510349818,0.66,124.62,124.59,11.67835489]
[1766510350328,0.66,124.62,124.59,0.72]
[1766510350533,0.66,124.62,124.59,3.65215849]
[1766510354437,0.66,124.62,124.59,0.72]
[1766510354637,0.7,124.61,124.58,3.64215849]
[1766510357641,0.7,124.61,124.59,2.93215849]
[1766510358945,0.7,124.62,124.59,3.64215849]
[1766510359148,0.7,124.62,124.6,2.93215849]
[1766510359944,0.7,124.62,124.6,1.87651101]
[1766510360821,0.7,124.62,124.6,2.58651101]
[1766510361021,0.7,124.62,124.6,0.71]
[1766510364150,8.02396017,124.63,124.6,0.71]
[1766510364328,19.16108877,124.64,124.61,0.71]
[1766510364529,0.7,124.63,124.61,0.71]
[1766510365024,0.7,124.63,124.6,2.58651101]
[1766510366035,8.02376879,124.63,124.59,8.02625873]
[1766510366264,0.7,124.62,124.59,10.61276974]
[1766510366461,20.33753227,124.64,124.59,9.90276974]
[1766510366667,19.16085263,124.64,124.61,0.71]
[1766510367043,11.13767296,124.64,124.61,2.58651101]
[1766510367246,0.9,124.66,124.63,2.58651101]
[1766510367455,0.9,124.66,124.64,0.71]
[1766510367656,0.9,124.66,124.63,2.58651101]
[1766510367976,0.9,124.66,124.64,1.87651101]
[1766510368359,0.2,124.66,124.63,2.58651101]
[1766510368560,0.9,124.66,124.63,2.58651101]
[1766510369576,0.7,124.65,124.63,2.58651101]
[1766510372674,0.7,124.65,124.64,1.87651101]
[1766510373264,0.7,124.65,124.63,10.61024704]
[1766510373588,10.63767296,124.68,124.64,2.59651101]
[1766510373762,0.2,124.69,124.67,1.87651101]
[1766510373955,0.2,124.69,124.68,2.59651101]
[1766510374156,0.2,124.69,124.68,0.72]
[1766510374482,0.2,124.69,124.68,2.59651101]
[1766510374976,0.2,124.69,124.65,1.87651101]
[1766510375165,0.2,124.69,124.67,2.59651101]
[1766510376782,0.2,124.69,124.68,1.87651101]
[1766510377584,0.2,124.69,124.67,2.59651101]
[1766510377881,0.89,124.69,124.66,2.53651101]
[1766510378184,0.69,124.68,124.65,10.55883421]
[1766510378869,0.69,124.68,124.65,9.89883421]
[1766510379169,0.69,124.68,124.65,10.55883421]
[1766510379371,0.69,124.68,124.65,2.53651101]
[1766510379570,0.69,124.68,124.65,1.87651101]
[1766510380786,0.69,124.67,124.65,1.87651101]
[1766510381284,0.69,124.67,124.64,2.53651101]
[1766510381491,0.69,124.67,124.64,10.55952135]
[1766510386498,0.69,124.68,124.65,2.53651101]
[1766510387999,0.69,124.68,124.64,8.68301034]
[1766510388185,0.69,124.68,124.65,1.87651101]
[1766510389209,0.69,124.68,124.65,10.55896501]
[1766510391187,0.69,124.68,124.66,1.87651101]
[1766510391484,0.2,124.69,124.66,1.87651101]
[1766510391696,0.2,124.69,124.66,2.53651101]
[1766510391994,0.89,124.69,124.66,2.53651101]
[1766510392375,8.91004377,124.69,124.66,2.53651101]
[1766510392576,8.90994303,124.69,124.66,0.66]
[1766510393301,0.69,124.68,124.65,0.66]
[1766510393604,0.69,124.68,124.65,2.53651101]
[1766510394700,0.2,124.69,124.66,1.87651101]
[1766510394880,0.89,124.69,124.66,2.53651101]
[1766510398205,0.69,124.68,124.66,1.87651101]
[1766510398587,0.89,124.69,124.66,2.53651101]
[1766510399610,0.89,124.69,124.66,0.66]
[1766510399794,0.2,124.69,124.66,0.66]
[1766510399995,0.89,124.69,124.66,2.53651101]
[1766510401808,8.21935388,124.7,124.68,2.53651101]
[1766510401809,0.2,124.7,124.68,2.53651101]
[1766510402003,0.89,124.7,124.67,10.55709156]
[1766510402588,0.2,124.7,124.69,1.87651101]
[1766510402898,0.2,124.7,124.68,2.53651101]
[1766510403092,0.89,124.7,124.67,8.68058055]
[1766510403293,0.89,124.7,124.68,1.87651101]
[1766510403709,0.2,124.7,124.69,1.87651101]
[1766510406115,11.12767296,124.72,124.69,2.53651101]
[1766510407312,10.43767296,124.72,124.69,2.53651101]
[1766510407514,0.69,124.71,124.69,2.53651101]
[1766510407918,0.69,124.71,124.68,10.58702297]
[1766510408104,0.69,124.71,124.69,1.87651101]
[1766510409310,10.43767296,124.72,124.69,1.87651101]
[1766510409516,11.12767296,124.72,124.69,2.56651101]
[1766510409814,11.12767296,124.72,124.69,0.69]
[1766510410007,11.12767296,124.72,124.69,2.56651101]
[1766510411014,0.69,124.71,124.67,2.56651101]
[1766510411314,0.69,124.7,124.66,24.53771969]
[1766510411620,0.69,124.7,124.66,25.22771969]
[1766510412003,0.69,124.7,124.67,0.69]
[1766510412213,0.69,124.7,124.66,25.22771969]
[1766510413418,0.69,124.7,124.66,23.35120868]
[1766510413616,0.69,124.7,124.66,25.22771969]
[1766510413820,0.69,124.69,124.64,0.69]
[1766510414023,0.69,124.68,124.64,2.56651101]
[1766510414203,0.69,124.68,124.64,1.87651101]
[1766510414410,0.69,124.68,124.65,2.56651101]
[1766510416023,0.69,124.68,124.65,0.69]
[1766510416319,0.69,124.68,124.65,2.56651101]
[1766510416521,0.69,124.68,124.65,0.69]
[1766510416723,0.69,124.68,124.65,2.56651101]
[1766510418409,0.69,124.68,124.65,0.69]
[1766510421446,0.69,124.67,124.63,23.35362355]
[1766510421632,0.69,124.67,124.63,26.283499]
[1766510422529,0.69,124.67,124.64,0.69]
[1766510422916,0.69,124.67,124.64,3.61987545]
[1766510423510,0.69,124.67,124.64,0.69]
[1766510424425,0.69,124.67,124.64,8.71307977]
[1766510425331,0.69,124.67,124.64,11.64295522]
[1766510426833,0.69,124.68,124.63,23.3535252]
[1766510427128,0.69,124.67,124.64,11.64287768]
[1766510430836,0.69,124.67,124.64,8.71300223]
[1766510431011,0.69,124.68,124.64,11.64287768]
[1766510432245,0.69,124.67,124.64,8.71300223]
[1766510432548,0.69,124.67,124.64,11.64287768]
[1766510432839,10.95005296,124.69,124.65,0.69]
[1766510433013,0.69,124.68,124.65,0.69]
[1766510433336,0.69,124.68,124.65,3.61987545]
[1766510433832,0.69,124.68,124.65,0.69]
[1766510434334,0.69,124.68,124.64,8.68300223]
[1766510434516,10.95054033,124.68,124.64,8.68300223]
[1766510434717,0.66,124.67,124.64,11.61287768]
[1766510435537,0.66,124.69,124.66,3.58987545]
[1766510436113,0.66,124.69,124.67,3.58987545]
[1766510436537,0.66,124.69,124.67,11.61081878]
[1766510437437,0.66,124.71,124.68,3.60987545]
[1766510437831,0.66,124.71,124.68,0.68]
[1766510438031,0.66,124.71,124.68,3.60987545]
[1766510438837,0.66,124.71,124.68,2.92987545]
[1766510440827,0.66,124.7,124.67,11.63081878]
[1766510443738,0.66,124.7,124.67,8.70094333]
[1766510443944,0.66,124.7,124.67,8.02094333]
[1766510444542,0.66,124.7,124.67,10.95081878]
[1766510444728,0.66,124.7,124.67,11.63081878]
[1766510449421,0.66,124.7,124.68,2.92987545]
[1766510451145,19.02571525,124.73,124.69,2.92987545]
[1766510451325,0.66,124.72,124.7,2.92987545]
[1766510451825,0.66,124.72,124.69,10.94951565]
[1766510454221,0.66,124.72,124.69,8.0196402]
[1766510458233,0.66,124.71,124.68,17.56987545]
[1766510458442,0.66,124.71,124.68,18.24987545]
[1766510458860,0.66,124.71,124.68,26.27033984]
[1766510459352,0.66,124.71,124.69,2.92987545]
[1766510460052,0.66,124.71,124.68,26.27033984]
[1766510460357,0.66,124.71,124.69,10.94960891]
[1766510460555,8.87733867,124.73,124.7,3.60987545]
[1766510460861,0.2,124.73,124.71,3.60987545]
[1766510461958,0.2,124.73,124.7,8.01876619]
[1766510461959,0.66,124.72,124.7,17.56987545]
[1766510462449,0.86,124.73,124.7,18.24987545]
[1766510462651,0.86,124.73,124.7,15.32]
[1766510462964,0.66,124.72,124.69,11.62949219]
[1766510463132,0.66,124.72,124.69,3.60987545]
[1766510465361,0.66,124.72,124.69,11.6296676]
[1766510467156,0.66,124.72,124.7,2.92987545]
[1766510468159,0.66,124.71,124.69,2.92987545]
[1766510468340,0.66,124.71,124.68,2.92987545]
[1766510468541,0.66,124.71,124.68,0.67]
[1766510470160,0.66,124.71,124.68,3.59987545]
[1766510470362,0.66,124.71,124.68,11.62040447]
[1766510470563,0.66,124.72,124.69,3.59987545]
[1766510471646,0.66,124.72,124.69,11.61969678]
[1766510472578,0.66,124.72,124.69,8.01982133]
[1766510472868,0.66,124.72,124.69,3.59987545]
[1766510473234,0.66,124.71,124.68,3.59987545]
[1766510473434,0.66,124.71,124.69,0.67]
[1766510474042,0.66,124.72,124.69,0.67]
[1766510474242,0.66,124.72,124.69,3.59987545]
[1766510476558,8.21753633,124.73,124.69,10.94974846]
[1766510476758,0.66,124.72,124.69,11.61974846]
[1766510477344,0.66,124.72,124.69,3.59987545]
[1766510478358,0.2,124.73,124.69,2.92987545]
[1766510478681,0.86,124.73,124.7,3.59987545]
[1766510478848,0.86,124.73,124.7,11.61898519]
[1766510479579,0.86,124.73,124.7,0.67]
[1766510479769,0.86,124.73,124.7,3.59987545]
[1766510481491,0.2,124.73,124.7,3.59987545]
[1766510481681,0.66,124.72,124.68,11.61999134]
[1766510482046,0.66,124.72,124.68,9.89393619]
[1766510482268,0.66,124.72,124.69,0.67]
[1766510483356,0.66,124.71,124.68,0.67]
[1766510483657,0.66,124.71,124.67,24.53473125]
[1766510483658,0.66,124.71,124.67,17.1838203]
[1766510483857,0.66,124.71,124.67,2.5438203]
[1766510485380,0.66,124.7,124.67,9.89490964]
[1766510485553,0.66,124.7,124.68,0.67]
[1766510486177,0.66,124.71,124.68,0.67]
[1766510486752,0.66,124.71,124.68,2.5438203]
[1766510486954,0.66,124.72,124.69,2.5438203]
[1766510487678,0.66,124.72,124.69,0.67]
[1766510488891,8.21741864,124.73,124.7,0.67]
[1766510489056,8.21741864,124.73,124.71,0.67]
[1766510490087,8.87741864,124.73,124.71,0.67]
[1766510490776,8.87741864,124.73,124.7,1.8738203]
[1766510490973,8.87741864,124.73,124.7,2.5438203]
[1766510491582,8.87741864,124.73,124.7,0.67]
[1766510491763,8.87741864,124.73,124.7,2.5438203]
[1766510494086,8.87741864,124.73,124.7,0.67]
[1766510496293,0.66,124.71,124.68,17.1938203]
[1766510496667,0.66,124.71,124.68,25.2143168]
[1766510496987,0.66,124.71,124.68,14.64]
[1766510497192,0.7,124.7,124.68,14.64]
[1766510497379,0.7,124.7,124.67,2.5938203]
[1766510497757,0.7,124.7,124.67,0.72]
[1766510497984,0.7,124.7,124.67,2.5938203]
[1766510500186,0.7,124.69,124.65,33.81984275]
[1766510500392,0.7,124.68,124.65,11.15767296]
[1766510500693,0.7,124.68,124.65,13.03149326]
[1766510500889,0.7,124.68,124.65,21.05394298]
[1766510502189,0.7,124.68,124.65,19.18012268]
[1766510502366,0.7,124.68,124.65,0.72]
[1766510502775,0.7,124.68,124.65,2.5938203]
[1766510504801,0.7,124.69,124.66,0.72]
[1766510505096,0.7,124.69,124.65,10.61616163]
[1766510505390,0.7,124.69,124.65,9.89616163]
[1766510505598,0.7,124.69,124.66,0.72]
[1766510505917,0.7,124.7,124.67,0.72]
[1766510506215,0.7,124.68,124.65,8.74234133]
[1766510506381,0.7,124.68,124.65,0.72]
[1766510506789,0.7,124.68,124.65,2.5938203]
[1766510507016,0.7,124.68,124.66,0.72]
[1766510507992,0.7,124.69,124.66,0.72]
[1766510510197,9.89258407,124.71,124.66,9.89562663]
[1766510510388,0.7,124.7,124.67,0.72]
[1766510510694,0.7,124.71,124.67,1.8738203]
[1766510510889,0.7,124.71,124.67,2.5938203]
[1766510511075,2.5738203,124.71,124.67,0.72]
[1766510511275,0.7,124.7,124.67,0.72]
[1766510511704,1.8738203,124.7,124.66,1.8738203]
[1766510511892,0.7,124.68,124.64,2.5938203]
[1766510512076,0.7,124.68,124.64,10.61654844]
[1766510512484,0.7,124.68,124.65,0.72]
[1766510512795,11.13767296,124.65,124.6,0.72]
[1766510512970,1.8738203,124.63,124.6,0.72]
[1766510513482,0.7,124.62,124.6,0.72]
[1766510513870,2.5738203,124.62,124.59,0.72]
[1766510515476,10.59829686,124.62,124.59,0.72]
[1766510516290,8.72447656,124.62,124.59,0.72]
[1766510517202,0.7,124.62,124.59,0.72]
[1766510517498,19.16036854,124.65,124.62,0.72]
[1766510517698,0.7,124.65,124.62,2.5938203]
[1766510517891,8.72266252,124.65,124.62,0.72]
[1766510518083,0.7,124.64,124.61,2.5938203]
[1766510518290,0.7,124.64,124.61,0.72]
[1766510519037,8.72342318,124.64,124.61,0.72]
[1766510521296,10.59724348,124.64,124.61,0.72]
[1766510521804,8.72342318,124.64,124.61,0.72]
[1766510522593,0.7,124.63,124.59,2.5938203]
[1766510522800,28.08118954,124.64,124.6,0.72]
[1766510522999,0.7,124.63,124.6,2.5938203]
[1766510523600,2.5738203,124.63,124.59,2.5938203]
[1766510523906,8.72400109,124.63,124.6,0.72]
[1766510525107,10.59782139,124.63,124.6,0.72]
[1766510525406,8.72400109,124.63,124.6,2.5938203]
[1766510526008,8.72400109,124.63,124.6,0.72]
[1766510527287,8.68447186,124.62,124.59,0.66]
[1766510527486,8.68447186,124.62,124.59,2.5338203]
[1766510527695,0.66,124.61,124.58,14.64]
[1766510527895,0.66,124.61,124.58,1.8738203]
[1766510528213,0.66,124.61,124.58,2.5338203]
[1766510528509,9.89829216,124.62,124.58,1.8738203]
[1766510528685,10.55829216,124.62,124.59,0.66]
[1766510529089,10.55829216,124.62,124.57,15.32]
[1766510529090,0.66,124.61,124.57,15.32]
[1766510529290,8.68546609,124.61,124.58,0.66]
[1766510530294,10.55928639,124.61,124.58,0.66]
[1766510530906,0.66,124.6,124.57,17.1938203]
[1766510531495,8.02632635,124.59,124.57,17.1938203]
[1766510531702,8.02632635,124.59,124.57,0.66]
[1766510532117,8.02632635,124.59,124.56,0.2]
[1766510532414,0.66,124.55,124.54,1e-08]
[1766510533489,8.68890405,124.55,124.54,1e-08]
[1766510533691,10.56272435,124.55,124.54,1e-08]
[1766510534089,8.68890405,124.55,124.54,1e-08]
[1766510534914,10.56272435,124.55,124.52,0.86]
[1766510535100,0.66,124.54,124.52,0.2]
[1766510535605,9.90377456,124.54,124.52,0.2]
[1766510535807,1.8738203,124.53,124.51,1e-08]
[1766510535996,0.66,124.52,124.51,1e-08]
[1766510536498,0.66,124.52,124.48,2.5338203]
[1766510536499,0.66,124.51,124.48,0.66]
[1766510536693,0.66,124.51,124.47,1.9738203]
[1766510536902,0.66,124.51,124.47,2.6338203]
[1766510537106,0.66,124.5,124.47,0.76]
[1766510537512,0.66,124.5,124.47,0.1]
[1766510537815,8.03325529,124.49,124.47,0.1]
[1766510538018,0.66,124.49,124.47,0.1]
[1766510539040,8.03172223,124.51,124.47,1.9738203]
[1766510539317,0.66,124.52,124.48,2.5338203]
[1766510539994,10.56487445,124.52,124.48,2.5338203]
[1766510541820,10.56487445,124.52,124.48,0.66]
[1766510542027,10.56487445,124.52,124.48,2.5338203]
[1766510542611,0.66,124.51,124.48,2.5338203]
[1766510542809,8.02961532,124.54,124.51,0.66]
[1766510543022,8.02761499,124.57,124.54,0.66]
[1766510543205,8.13442894,124.57,124.55,2.5338203]
[1766510543400,8.68673771,124.59,124.56,1.8738203]
[1766510543728,0.66,124.59,124.56,2.5338203]
[1766510543896,8.68649285,124.59,124.56,3.5936963]
[1766510544610,8.68649285,124.59,124.55,3.5936963]
[1766510544811,8.68649285,124.59,124.56,2.9336963]
[1766510545329,0.66,124.57,124.53,0.66]
[1766510545533,0.66,124.57,124.53,3.5936963]
[1766510545950,13.37136926,124.55,124.43,6.05286454]
[1766510546245,13.37136926,124.55,124.41,0.1]
[1766510546246,0.66,124.46,124.41,0.1]
[1766510546530,3.5936963,124.44,124.41,0.1]
[1766510546943,0.66,124.44,124.41,0.1]
[1766510547431,8.69615207,124.44,124.41,0.1]
[1766510549350,0.66,124.41,124.37,3.5936963]
[1766510549638,0.66,124.41,124.38,14.66]
[1766510550027,0.66,124.41,124.39,14.66]
[1766510550719,16.34611996,124.45,124.4,8.31071544]
[1766510550917,16.34611996,124.45,124.4,4.29647347]
[1766510551113,36.43450887,124.45,124.41,0.66]
[1766510551314,0.66,124.43,124.41,14.66]
[1766510551533,8.31071544,124.43,124.41,14.66]
[1766510552444,8.03729303,124.42,124.41,14.66]
[1766510552745,16.34800847,124.42,124.39,14.66]
[1766510552958,7.65071544,124.41,124.39,14.66]
[1766510553551,7.65071544,124.41,124.38,14.66]
[1766510553728,8.0385852,124.4,124.38,14.66]
[1766510554353,8.69752383,124.42,124.38,15.38]
[1766510554847,8.69752383,124.42,124.38,23.03071544]
[1766510555031,16.34823927,124.42,124.38,15.38]
[1766510555631,16.36823927,124.42,124.39,14.68]
[1766510555846,10.43767296,124.4,124.39,14.68]
[1766510556241,11.11767296,124.4,124.35,8.47071544]
[1766510556441,8.33071544,124.39,124.36,14.68]
[1766510556647,10.43767296,124.4,124.36,15.4]
[1766510556648,18.7683884,124.4,124.36,15.4]
[1766510557957,19.15650287,124.4,124.36,23.05071544]
[1766510558130,19.15650287,124.4,124.36,8.37071544]
[1766510558336,19.15650287,124.4,124.36,23.05071544]
[1766510559652,26.80721831,124.4,124.36,15.4]
[1766510560256,11.11767296,124.4,124.36,15.4]
[1766510560450,8.73815374,124.41,124.37,8.35071544]
[1766510560645,8.73815374,124.41,124.38,0.7]
[1766510560851,16.38886918,124.41,124.37,15.38]
[1766510562238,8.73815374,124.41,124.37,15.38]
[1766510562437,16.38886918,124.41,124.37,0.7]
[1766510562853,8.73815374,124.41,124.37,0.7]
[1766510563764,0.7,124.39,124.35,0.8]
[1766510563938,0.7,124.39,124.35,8.45071544]
[1766510564135,15.68886918,124.41,124.37,0.7]
[1766510564454,0.7,124.41,124.37,0.7]
[1766510564636,8.03786752,124.42,124.39,0.7]
[1766510565029,38.88069939,124.43,124.39,0.7]
[1766510565030,23.03071544,124.45,124.41,8.35071544]
[1766510565261,4.19486118,124.46,124.42,8.35071544]
[1766510565262,12.92983742,124.46,124.42,8.35071544]
[1766510565432,8.03497624,124.46,124.43,7.65071544]
[1766510565634,54.84588152,124.49,124.45,7.65071544]
[1766510565635,8.73341902,124.48,124.45,7.65071544]
[1766510566161,8.03284982,124.49,124.45,8.35071544]
[1766510566333,8.03284982,124.49,124.46,7.65071544]
[1766510566939,8.73284982,124.49,124.46,7.65071544]
[1766510567269,8.73284982,124.49,124.45,23.03071544]
[1766510568849,8.73284982,124.49,124.45,15.38]
[1766510569361,8.73284982,124.49,124.45,23.03071544]
[1766510571585,4.19290085,124.52,124.48,7.65071544]
[1766510571872,8.73063825,124.53,124.5,7.65071544]
[1766510572167,8.73063825,124.53,124.49,8.35071544]
[1766510573467,12.20942723,124.55,124.52,7.65071544]
[1766510573640,8.0291252,124.55,124.52,8.35071544]
[1766510573841,8.7291252,124.55,124.51,7.65071544]
[1766510574262,0.7,124.54,124.5,0.7]
[1766510574473,0.7,124.54,124.5,8.35071544]
[1766510575669,8.7300958,124.54,124.5,8.35071544]
[1766510576557,8.7290365,124.55,124.51,8.35071544]
[1766510578551,0.7,124.54,124.51,7.65071544]
[1766510578757,0.7,124.54,124.5,23.01071544]
[1766510579106,0.7,124.53,124.49,7.65071544]
[1766510579272,0.7,124.53,124.48,8.35071544]
[1766510579479,0.7,124.53,124.49,0.7]
[1766510579853,0.7,124.53,124.49,8.35071544]
[1766510580176,0.7,124.54,124.5,8.35071544]
[1766510580678,8.73005881,124.54,124.5,8.35071544]
[1766510581277,0.7,124.53,124.49,7.65071544]
[1766510581452,0.7,124.53,124.49,8.35071544]
[1766510581851,0.7,124.53,124.48,8.35071544]
[1766510582080,0.7,124.53,124.49,0.7]
[1766510582377,0.7,124.52,124.49,0.7]
[1766510583174,8.73102941,124.52,124.48,0.7]
[1766510583490,8.73102941,124.52,124.48,8.35071544]
[1766510583867,8.73102941,124.52,124.48,0.7]
[1766510584189,8.73102941,124.52,124.48,8.35071544]
[1766510584568,8.73102941,124.52,124.48,0.7]
[1766510584768,8.73102941,124.52,124.48,8.35071544]
[1766510585874,8.73102941,124.52,124.48,0.7]
[1766510586280,8.73102941,124.52,124.48,8.35071544]
[1766510586885,8.73102941,124.52,124.48,0.7]
[1766510587273,8.73102941,124.52,124.48,8.35071544]
[1766510590500,8.35071544,124.49,124.44,0.72]
[1766510590678,0.7,124.48,124.44,8.75583118]
[1766510590864,0.7,124.48,124.45,8.37071544]
[1766510591068,8.03322414,124.49,124.46,8.37071544]
[1766510591479,0.7,124.48,124.45,7.65071544]
[1766510591682,0.7,124.48,124.45,8.37071544]
[1766510591971,0.7,124.48,124.45,3.65868718]
[1766510592870,8.73322414,124.49,124.45,3.65868718]
[1766510593994,8.73322414,124.49,124.45,8.36045096]
[1766510594369,8.03322414,124.49,124.45,8.36045096]
[1766510594573,0.7,124.48,124.45,8.36045096]
[1766510596500,8.7324202,124.5,124.46,8.36045096]
[1766510596680,0.7,124.49,124.46,8.36045096]
[1766510596996,0.7,124.49,124.46,0.72]
[1766510597709,0.7,124.49,124.46,8.36045096]
[1766510597873,0.7,124.49,124.46,0.72]
[1766510598502,0.7,124.49,124.45,8.75523963]
[1766510598706,0.7,124.49,124.45,16.39569059]
[1766510599505,8.34045096,124.48,124.43,0.72]
[1766510599806,0.7,124.47,124.43,0.72]
[1766510600106,0.7,124.47,124.43,8.36045096]
[1766510601106,0.7,124.47,124.43,8.75627778]
[1766510601289,0.7,124.46,124.39,0.72]
[1766510601482,0.7,124.46,124.43,0.72]
[1766510602302,26.11176978,124.48,124.43,16.39707218]
[1766510602503,0.7,124.47,124.43,16.39707218]
[1766510605006,0.7,124.46,124.43,8.75662122]
[1766510605507,0.7,124.47,124.43,8.75662122]
[1766510606101,8.73412889,124.47,124.43,8.75662122]
[1766510606475,8.73421712,124.47,124.43,8.75662122]
[1766510606679,0.7,124.46,124.43,0.72]
[1766510607506,0.7,124.46,124.43,5.42372467]
[1766510609313,18.47135228,124.48,124.45,0.72]
[1766510609497,19.17135228,124.48,124.45,0.72]
[1766510609699,11.13767296,124.48,124.45,5.42372467]
[1766510611433,5.40372467,124.46,124.42,0.72]
[1766510611743,0.7,124.43,124.39,5.42372467]
[1766510612224,5.40372467,124.43,124.39,5.42372467]
[1766510612425,0.7,124.43,124.4,0.72]
[1766510613307,8.73676315,124.43,124.4,0.72]
[1766510614134,2.55263973,124.42,124.37,0.72]
[1766510614424,2.55263973,124.4,124.36,0.72]
[1766510615225,0.67,124.4,124.36,0.72]
[1766510615432,0.67,124.4,124.36,2.60263973]
[1766510615731,9.92144714,124.4,124.36,0.72]
[1766510615922,0.67,124.39,124.35,13.57130646]
[1766510616116,4.70955386,124.39,124.35,0.82]
[1766510616323,0.67,124.38,124.35,0.82]
[1766510616651,0.67,124.38,124.35,0.1]
[1766510616992,0.67,124.38,124.35,4.80955386]
[1766510618024,8.72943721,124.39,124.35,5.50955386]
[1766510618703,0.69,124.39,124.35,5.50955386]
[1766510618908,0.69,124.39,124.35,13.5513]
[1766510620018,8.72939855,124.39,124.35,0.8]
[1766510620235,8.72939855,124.39,124.35,5.50955386]
[1766510620424,8.72939855,124.39,124.35,0.8]
[1766510620738,8.72939855,124.39,124.35,5.50955386]
[1766510621233,8.72939855,124.39,124.35,0.8]
[1766510621436,13.43895241,124.39,124.35,0.8]
[1766510621636,0.69,124.39,124.35,8.84174287]
[1766510621933,8.72934506,124.39,124.35,5.50955386]
[1766510623134,0.69,124.39,124.36,4.70955386]
[1766510623326,0.69,124.36,124.34,1e-08]
[1766510625820,8.73131176,124.36,124.34,1e-08]
[1766510626315,0.69,124.36,124.34,1e-08]
[1766510626932,10.43767296,124.38,124.35,5.40955386]
[1766510627437,19.16777706,124.38,124.35,5.40955386]
[1766510628145,19.16777706,124.38,124.35,0.7]
[1766510628639,19.16777706,124.38,124.35,5.40955386]
[1766510629749,11.12767296,124.38,124.35,5.40955386]
[1766510630243,8.72812349,124.41,124.37,5.40955386]
[1766510630542,23.40769259,124.42,124.39,4.70955386]
[1766510630841,0.69,124.42,124.39,5.40955386]
[1766510631724,23.40614869,124.44,124.41,4.70955386]
[1766510631931,14.68,124.44,124.42,4.70955386]
[1766510632127,8.72554682,124.45,124.42,4.70955386]
[1766510632322,0.69,124.45,124.43,4.70955386]
[1766510632538,0.69,124.45,124.42,0.7]
[1766510632743,0.69,124.45,124.41,4.70955386]
[1766510632744,0.69,124.45,124.41,5.40955386]
[1766510633022,0.69,124.44,124.4,0.7]
[1766510633232,8.72644015,124.44,124.4,5.40955386]
[1766510634729,8.72644015,124.44,124.41,4.70955386]
[1766510635647,0.69,124.44,124.41,4.70955386]
[1766510635828,0.69,124.44,124.41,5.40955386]
[1766510636338,22.71492481,124.46,124.43,4.70955386]
[1766510636528,0.69,124.45,124.42,5.40955386]
[1766510640048,0.69,124.45,124.42,2.58165883]
[1766510641951,8.72538399,124.45,124.42,2.58165883]
[1766510643552,8.72538399,124.45,124.42,0.7]
[1766510643738,8.72538399,124.45,124.42,2.58165883]
[1766510644052,8.72538399,124.45,124.41,2.58165883]
[1766510646335,0.69,124.44,124.41,1.88165883]
[1766510647431,0.69,124.44,124.41,2.54165883]
[1766510653646,8.72605197,124.44,124.41,2.54165883]